Workbook

Sheet sheet
A1: 2023年马边彝族自治县事业单位公开考试招聘工作人员面试成绩、总成绩排名及进入体检人员名单
A2: 序号 | B2: 主管部门 | C2: 报考单位 | D2: 岗位名称 | E2: 岗位编码 | F2: 招聘 人数 | G2: 姓名 | H2: 笔试总成绩 | I2: 笔试折合成绩 | J2: 笔试总成绩排名 | K2: 面试成绩 | L2: 面试折合成绩 | M2: 总成绩 | N2: 总成绩排名 | O2: 是否进入体检
A3: 1 | B3: 马边彝族自治县财政局 | C3: 财政预算编审中心 | D3: 会计 | E3: 20010101 | F3: 1 | G3: 付雨晴 | H3: 64.30 | I3: =H3*50% -> 32.15 | J3: 1 | K3: 80.20 | L3: =K3*50% -> 40.10 | M3: =I3+L3 -> 72.25 | N3: 1 | O3: 是
A4: 2 | G4: 霍英杰 | H4: 61.70 | I4: =H4*50% -> 30.85 | J4: 2 | K4: 81.60 | L4: =K4*50% -> 40.80 | M4: =I4+L4 -> 71.65 | N4: 2
A5: 3 | G5: 尹杭 | H5: 61.20 | I5: 30.60 | J5: 3 | K5: 缺考
A6: 4 | B6: 马边彝族自治县自然资源局 | C6: 征地事务所 | D6: 征地事务 | E6: 20020101 | F6: 1 | G6: 罗彬 | H6: 53.90 | I6: 26.95 | J6: 1 | K6: 84.60 | L6: =K6*50% -> 42.30 | M6: =I6+L6 -> 69.25 | N6: 1 | O6: 是
A7: 5 | G7: 曲别阿福 | H7: 45.10 | I7: 22.55 | J7: 2 | K7: 82.40 | L7: 41.20 | M7: 63.75 | N7: 2
A8: 6 | G8: 阿培克古 | H8: 44.10 | I8: 22.05 | J8: 3 | K8: 66.20 | L8: 33.10 | M8: 55.15 | N8: 3
A9: 7 | C9: 土地储备交易中心 | D9: 土地储备交易 | E9: 20030101 | F9: 1 | G9: 熊兴平 | H9: 60.90 | I9: 30.45 | J9: 4 | K9: 80.60 | L9: 40.30 | M9: 70.75 | N9: 1 | O9: 是
A10: 8 | G10: 黑来叶细 | H10: 62.10 | I10: 31.05 | J10: 3 | K10: 77.60 | L10: 38.80 | M10: 69.85 | N10: 2
A11: 9 | B11: 马边彝族自治县农业农村局 | C11: 植保植检站 | D11: 植物检疫 | E11: 20040101 | F11: 1 | G11: 罗宇飞 | H11: 56.70 | I11: 28.35 | J11: 1 | K11: 84.70 | L11: 42.35 | M11: 70.70 | N11: 1 | O11: 是
A12: 10 | G12: 吉胡大习 | H12: 56.10 | I12: 28.05 | J12: 2 | K12: 74.40 | L12: 37.20 | M12: 65.25 | N12: 2
A13: 11 | G13: 阿巫阿西 | H13: 50.30 | I13: 25.15 | J13: 3 | K13: 80.20 | L13: 40.10 | M13: 65.25 | N13: 3
A14: 12 | C14: 种子站 | D14: 种子推广 | E14: 20050101 | F14: 1 | G14: 丁玉霞 | H14: 56.10 | I14: 28.05 | J14: 1 | K14: 79.40 | L14: 39.70 | M14: 67.75 | N14: 1 | O14: 是
A15: 13 | G15: 黑来吴姮 | H15: 44.30 | I15: 22.15 | J15: 3 | K15: 78.20 | L15: 39.10 | M15: 61.25 | N15: 2
A16: 14 | G16: 王擎越 | H16: 44.10 | I16: 22.05 | J16: 4 | K16: 73.20 | L16: 36.60 | M16: 58.65 | N16: 3
A17: 15 | B17: 马边彝族自治县水务局 | C17: 河湖保护站 | D17: 河湖管理 | E17: 20060101 | F17: 1 | G17: 权浩 | H17: 71.00 | I17: 35.50 | J17: 1 | K17: 81.80 | L17: 40.90 | M17: 76.40 | N17: 1 | O17: 是
A18: 16 | G18: 张译匀 | H18: 60.20 | I18: 30.10 | J18: 2 | K18: 77.20 | L18: 38.60 | M18: 68.70 | N18: 2
A19: 17 | G19: 向铭 | H19: 59.80 | I19: 29.90 | J19: 4 | K19: 73.60 | L19: 36.80 | M19: 66.70 | N19: 3
A20: 18 | B20: 马边彝族自治县文化体育和旅游局 | C20: 文化馆 | D20: 助理馆员1 | E20: 20070101 | F20: 1 | G20: 韦鉴洋 | H20: 59.60 | I20: 29.80 | J20: 2 | K20: 84.40 | L20: 42.20 | M20: 72.00 | N20: 1 | O20: 是
A21: 19 | G21: 范轩 | H21: 58.80 | I21: 29.40 | J21: 3 | K21: 82.60 | L21: 41.30 | M21: 70.70 | N21: 2
A22: 20 | G22: 罗一佩 | H22: 60.90 | I22: 30.45 | J22: 1 | K22: 78.60 | L22: 39.30 | M22: 69.75 | N22: 3
A23: 21 | D23: 助理馆员2 | E23: 20070102 | F23: 1 | G23: 阿罗达林 | H23: 61.80 | I23: 30.90 | J23: 1 | K23: 81.00 | L23: 40.50 | M23: 71.40 | N23: 1 | O23: 是
A24: 22 | G24: 阿石罗习 | H24: 60.50 | I24: 30.25 | J24: 3 | K24: 80.40 | L24: 40.20 | M24: 70.45 | N24: 2
A25: 23 | G25: 冯镔 | H25: 61.30 | I25: 30.65 | J25: 2 | K25: 73.70 | L25: 36.85 | M25: 67.50 | N25: 3
A26: 24 | B26: 马边彝族自治县应急管理局 | C26: 矿山安全技术服务中心 | D26: 安全技术服务 | E26: 20080101 | F26: 1 | G26: 罗钱 | H26: 65.30 | I26: 32.65 | J26: 1 | K26: 74.20 | L26: 37.10 | M26: 69.75 | N26: 1 | O26: 是
A27: 25 | G27: 陈秋红 | H27: 64.10 | I27: 32.05 | J27: 2 | K27: 74.80 | L27: 37.40 | M27: 69.45 | N27: 2
A28: 26 | G28: 牟继潇 | H28: 62.40 | I28: 31.20 | J28: 4 | K28: 69.00 | L28: 34.50 | M28: 65.70 | N28: 3
A29: 27 | B29: 马边彝族自治县政府办 | C29: “心连心”服务热线中心 | D29: 办公室文员 | E29: 20090101 | F29: 1 | G29: 阿术日乐 | H29: 58.70 | I29: 29.35 | J29: 1 | K29: 79.80 | L29: 39.90 | M29: 69.25 | N29: 1 | O29: 是
A30: 28 | G30: 彭华松 | H30: 54.80 | I30: 27.40 | J30: 2 | K30: 79.80 | L30: 39.90 | M30: 67.30 | N30: 2
A31: 29 | G31: 陈光星 | H31: 53.80 | I31: 26.90 | J31: 3 | K31: 78.80 | L31: 39.40 | M31: 66.30 | N31: 3
A32: 30 | B32: 马边彝族自治县教育局 | C32: 马边彝族自治县中学校 | D32: 高中体育教学 | E32: 20100201 | F32: 1 | G32: 李清 | H32: 71.00 | I32: 35.50 | J32: 1 | K32: 84.20 | L32: 42.10 | M32: 77.60 | N32: 1 | O32: 是
A33: 31 | G33: 周宇游 | H33: 67.50 | I33: 33.75 | J33: 2 | K33: 82.40 | L33: 41.20 | M33: 74.95 | N33: 2
A34: 32 | G34: 万永清 | H34: 62.00 | I34: 31.00 | J34: 3 | K34: 66.80 | L34: 33.40 | M34: 64.40 | N34: 3
A35: 33 | C35: 第一初级中学 | D35: 初中语文教学 | E35: 20110201 | F35: 4 | G35: 岳文莉 | H35: 71.00 | I35: 35.50 | J35: 2 | K35: 81.90 | L35: 40.95 | M35: 76.45 | N35: 1 | O35: 是
A36: 34 | G36: 朱羿 | H36: 66.00 | I36: 33.00 | J36: 6 | K36: 84.26 | L36: 42.13 | M36: 75.13 | N36: 2 | O36: 是
A37: 35 | G37: 彭富丽 | H37: 67.00 | I37: 33.50 | J37: 5 | K37: 82.20 | L37: 41.10 | M37: 74.60 | N37: 3 | O37: 是
A38: 36 | G38: 姚西 | H38: 71.50 | I38: 35.75 | J38: 1 | K38: 76.10 | L38: 38.05 | M38: 73.80 | N38: 4 | O38: 是
A39: 37 | G39: 贺红梅 | H39: 69.00 | I39: 34.50 | J39: 3 | K39: 78.30 | L39: 39.15 | M39: 73.65 | N39: 5
A40: 38 | G40: 熊玲莹 | H40: 68.00 | I40: 34.00 | J40: 4 | K40: 75.20 | L40: 37.60 | M40: 71.60 | N40: 6
A41: 39 | G41: 冯立雪 | H41: 63.00 | I41: 31.50 | J41: 8 | K41: 76.40 | L41: 38.20 | M41: 69.70 | N41: 7
A42: 40 | G42: 甘霖 | H42: 58.50 | I42: 29.25 | J42: 9 | K42: 78.86 | L42: 39.43 | M42: 68.68 | N42: 8
A43: 41 | D43: 初中体育教学 | E43: 20110202 | F43: 2 | G43: 朱银贵 | H43: 74.00 | I43: 37.00 | J43: 1 | K43: 80.64 | L43: 40.32 | M43: 77.32 | N43: 1 | O43: 是
A44: 42 | G44: 魏姑落 | H44: 69.00 | I44: 34.50 | J44: 3 | K44: 83.24 | L44: 41.62 | M44: 76.12 | N44: 2 | O44: 是
A45: 43 | G45: 浦能高 | H45: 69.50 | I45: 34.75 | J45: 2 | K45: 82.18 | L45: 41.09 | M45: 75.84 | N45: 3
A46: 44 | G46: 李晴 | H46: 68.00 | I46: 34.00 | J46: 4 | K46: 80.32 | L46: 40.16 | M46: 74.16 | N46: 4
A47: 45 | G47: 范淼昕 | H47: 66.00 | I47: 33.00 | J47: 5 | K47: 77.92 | L47: 38.96 | M47: 71.96 | N47: 5
A48: 46 | D48: 初中音乐教学 | E48: 20110203 | F48: 2 | G48: 乔吉英姿 | H48: 62.50 | I48: 31.25 | J48: 2 | K48: 82.11 | L48: 41.06 | M48: 72.31 | N48: 1 | O48: 是
A49: 47 | G49: 杨秀梅 | H49: 60.50 | I49: 30.25 | J49: 4 | K49: 81.95 | L49: 40.98 | M49: 71.23 | N49: 2 | O49: 是
A50: 48 | G50: 洛戈小梅 | H50: 59.50 | I50: 29.75 | J50: 5 | K50: 80.43 | L50: 40.22 | M50: 69.97 | N50: 3
A51: 49 | G51: 达者石罗 | H51: 63.50 | I51: 31.75 | J51: 1 | K51: 76.30 | L51: 38.15 | M51: 69.90 | N51: 4
A52: 50 | G52: 罗兰 | H52: 61.00 | I52: 30.50 | J52: 3 | K52: 77.62 | L52: 38.81 | M52: 69.31 | N52: 5
A53: 51 | G53: 吉克娘尔 | H53: 53.00 | I53: 26.50 | J53: 6 | K53: 82.56 | L53: 41.28 | M53: 67.78 | N53: 6
A54: 52 | C54: 马边彝族自治县初级中学 | D54: 初中语文教学 | E54: 20120201 | F54: 4 | G54: 彭洁 | H54: 69.50 | I54: 34.75 | J54: 2 | K54: 86.70 | L54: 43.35 | M54: 78.10 | N54: 1 | O54: 是
A55: 53 | G55: 陈宏 | H55: 68.00 | I55: 34.00 | J55: 3 | K55: 84.20 | L55: 42.10 | M55: 76.10 | N55: 2 | O55: 是
A56: 54 | G56: 熊元芬 | H56: 64.50 | I56: 32.25 | J56: 4 | K56: 77.50 | L56: 38.75 | M56: 71.00 | N56: 3 | O56: 是
A57: 55 | G57: 钱红娇 | H57: 63.50 | I57: 31.75 | J57: 5 | K57: 74.62 | L57: 37.31 | M57: 69.06 | N57: 4 | O57: 是
A58: 56 | G58: 文靖 | H58: 70.00 | I58: 35.00 | J58: 1 | K58: 缺考
A59: 57 | D59: 初中数学教学 | E59: 20120202 | F59: 6 | G59: 罗格晓龙 | H59: 67.00 | I59: 33.50 | J59: 2 | K59: 79.20 | L59: =K59*50% -> 39.60 | M59: =I59+L59 -> 73.10 | N59: 1 | O59: 是
A60: 58 | G60: 鲁航杰 | H60: 73.00 | I60: 36.50 | J60: 1 | K60: 67.60 | L60: 33.80 | M60: 70.30 | N60: 2 | O60: 是
A61: 59 | G61: 曲别阿洛 | H61: 64.00 | I61: 32.00 | J61: 4 | K61: 76.00 | L61: 38.00 | M61: 70.00 | N61: 3 | O61: 是
A62: 60 | G62: 罗霞 | H62: 64.00 | I62: 32.00 | J62: 4 | K62: 75.30 | L62: 37.65 | M62: 69.65 | N62: 4 | O62: 是
A63: 61 | G63: 倪怀斌 | H63: 66.00 | I63: 33.00 | J63: 3 | K63: 72.40 | L63: 36.20 | M63: 69.20 | N63: 5 | O63: 是
A64: 62 | G64: 王胡春 | H64: 62.00 | I64: 31.00 | J64: 7 | K64: 73.10 | L64: 36.55 | M64: 67.55 | N64: 6 | O64: 是
A65: 63 | G65: 李科序 | H65: 58.00 | I65: 29.00 | J65: 9 | K65: 76.80 | L65: 38.40 | M65: 67.40 | N65: 7
A66: 64 | G66: 刘茂林 | H66: 63.50 | I66: 31.75 | J66: 6 | K66: 70.40 | L66: 35.20 | M66: 66.95 | N66: 8
A67: 65 | G67: 罗祥桂 | H67: 57.50 | I67: 28.75 | J67: 10 | K67: 72.10 | L67: 36.05 | M67: 64.80 | N67: 9
A68: 66 | D68: 初中英语教学 | E68: 20120203 | F68: 5 | G68: 黄宇晴 | H68: 68.50 | I68: =H68*50% -> 34.25 | J68: 3 | K68: 90.90 | L68: 45.45 | M68: 79.70 | N68: 1 | O68: 是
A69: 67 | G69: 谢丽萍 | H69: 72.00 | I69: =H69*50% -> 36.00 | J69: 1 | K69: 85.54 | L69: =K69*50% -> 42.77 | M69: =I69+L69 -> 78.77 | N69: 2 | O69: 是
A70: 68 | G70: 鄢雨柔 | H70: 72.00 | I70: 36.00 | J70: 1 | K70: 83.48 | L70: 41.74 | M70: 77.74 | N70: 3 | O70: 是
A71: 69 | G71: 韩兴定 | H71: 66.00 | I71: 33.00 | J71: 5 | K71: 86.52 | L71: 43.26 | M71: 76.26 | N71: 4 | O71: 是
A72: 70 | G72: 杜朋 | H72: 66.50 | I72: 33.25 | J72: 4 | K72: 83.76 | L72: 41.88 | M72: 75.13 | N72: 5 | O72: 是
A73: 71 | G73: 童志燕 | H73: 60.00 | I73: 30.00 | J73: 7 | K73: 86.24 | L73: 43.12 | M73: 73.12 | N73: 6
A74: 72 | G74: 立牛阿叶 | H74: 60.00 | I74: 30.00 | J74: 7 | K74: 81.64 | L74: 40.82 | M74: 70.82 | N74: 7
A75: 73 | G75: 罗文秀 | H75: 55.50 | I75: 27.75 | J75: 10 | K75: 84.68 | L75: 42.34 | M75: 70.09 | N75: 8
A76: 74 | G76: 杨杰 | H76: 58.00 | I76: 29.00 | J76: 9 | K76: 80.38 | L76: 40.19 | M76: 69.19 | N76: 9
A77: 75 | G77: 刘继燕 | H77: 64.00 | I77: 32.00 | J77: 6 | K77: 66.26 | L77: 33.13 | M77: 65.13 | N77: 10
A78: 76 | D78: 初中美术教学 | E78: 20120204 | F78: 2 | G78: 陈倩倩 | H78: 74.00 | I78: 37.00 | J78: 4 | K78: 90.90 | L78: 45.45 | M78: 82.45 | N78: 1 | O78: 是
A79: 77 | G79: 李秀梅 | H79: 73.50 | I79: 36.75 | J79: 5 | K79: 87.40 | L79: 43.70 | M79: 80.45 | N79: 2 | O79: 是
A80: 78 | G80: 张琪 | H80: 74.50 | I80: 37.25 | J80: 2 | K80: 83.70 | L80: 41.85 | M80: 79.10 | N80: 3
A81: 79 | G81: 郭太苹 | H81: 72.50 | I81: 36.25 | J81: 6 | K81: 84.94 | L81: 42.47 | M81: 78.72 | N81: 4
A82: 80 | G82: 丁长燕 | H82: 75.00 | I82: 37.50 | J82: 1 | K82: 79.66 | L82: 39.83 | M82: 77.33 | N82: 5
A83: 81 | G83: 熊静 | H83: 74.50 | I83: 37.25 | J83: 2 | K83: 79.44 | L83: 39.72 | M83: 76.97 | N83: 6
A84: 82 | C84: 三河口镇初级中学 | D84: 初中语文教学 | E84: 20130201 | F84: 1 | G84: 欧目罗志 | H84: 75.50 | I84: 37.75 | J84: 1 | K84: 75.60 | L84: 37.80 | M84: 75.55 | N84: 1 | O84: 是
A85: 83 | G85: 吉赫流欣 | H85: 70.00 | I85: 35.00 | J85: 2 | K85: 78.60 | L85: 39.30 | M85: 74.30 | N85: 2
A86: 84 | D86: 初中数学教学 | E86: 20130202 | F86: 4 | G86: 娄苟罗布 | H86: 67.50 | I86: 33.75 | J86: 1 | K86: 78.00 | L86: 39.00 | M86: 72.75 | N86: 1 | O86: 是
A87: 85 | G87: 雷雷惹布 | H87: 51.00 | I87: 25.50 | J87: 4 | K87: 75.30 | L87: 37.65 | M87: 63.15 | N87: 2
A88: 86 | G88: 吉彭日古 | H88: 46.50 | I88: 23.25 | J88: 5 | K88: 72.00 | L88: 36.00 | M88: 59.25 | N88: 3
A89: 87 | D89: 初中英语教学 | E89: 20130203 | F89: 1 | G89: 峨毛宇星 | H89: 69.50 | I89: 34.75 | J89: 3 | K89: 91.38 | L89: 45.69 | M89: 80.44 | N89: 1 | O89: 是
A90: 88 | G90: 王学容 | H90: 74.50 | I90: 37.25 | J90: 1 | K90: 83.72 | L90: 41.86 | M90: 79.11 | N90: 2
A91: 89 | G91: 熊兴 | H91: 72.50 | I91: 36.25 | J91: 2 | K91: 81.50 | L91: 40.75 | M91: 77.00 | N91: 3
A92: 90 | C92: 苏坝镇初级中学 | D92: 初中音乐教学 | E92: 20140201 | F92: 1 | G92: 张草 | H92: 59.00 | I92: 29.50 | J92: 1 | K92: 83.19 | L92: 41.60 | M92: 71.10 | N92: 1 | O92: 是
A93: 91 | G93: 童钰珏 | H93: 55.50 | I93: 27.75 | J93: 2 | K93: 81.89 | L93: 40.95 | M93: 68.70 | N93: 2
A94: 92 | G94: 潘勇 | H94: 51.00 | I94: 25.50 | J94: 3 | K94: 81.62 | L94: 40.81 | M94: 66.31 | N94: 3
A95: 93 | C95: 下溪中小学 | D95: 小学数学教学 | E95: 20150202 | F95: 6 | G95: 郑绢夕 | H95: 60.00 | I95: 30.00 | J95: 2 | K95: 81.06 | L95: 40.53 | M95: 70.53 | N95: 1 | O95: 是
A96: 94 | G96: 廖德发 | H96: 61.50 | I96: 30.75 | J96: 1 | K96: 78.94 | L96: 39.47 | M96: 70.22 | N96: 2 | O96: 是
A97: 95 | G97: 啥妈医花 | H97: 57.50 | I97: 28.75 | J97: 4 | K97: 82.54 | L97: 41.27 | M97: 70.02 | N97: 3 | O97: 是
A98: 96 | G98: 阿留美阿支 | H98: 58.50 | I98: 29.25 | J98: 3 | K98: 79.76 | L98: 39.88 | M98: 69.13 | N98: 4 | O98: 是
A99: 97 | G99: 周文淞 | H99: 53.00 | I99: 26.50 | J99: 5 | K99: 81.10 | L99: 40.55 | M99: 67.05 | N99: 5
A100: 98 | G100: 鲁克晓付 | H100: 46.00 | I100: 23.00 | J100: 6 | K100: 缺考
A101: 99 | C101: 民建小学 | D101: 小学数学教学1 | E101: 20160201 | F101: 2 | G101: 肖祥彬 | H101: 59.50 | I101: 29.75 | J101: 1 | K101: 86.80 | L101: 43.40 | M101: 73.15 | N101: 1 | O101: 是
A102: 100 | G102: 费娅玲 | H102: 54.00 | I102: 27.00 | J102: 2 | K102: 81.70 | L102: 40.85 | M102: 67.85 | N102: 2 | O102: 是
A103: 101 | D103: 小学音乐教学 | E103: 20160203 | F103: 1 | G103: 谢泽录 | H103: 71.00 | I103: 35.50 | J103: 1 | K103: 87.38 | L103: 43.69 | M103: 79.19 | N103: 1 | O103: 是
A104: 102 | G104: 罗红 | H104: 66.00 | I104: 33.00 | J104: 2 | K104: 84.97 | L104: 42.49 | M104: 75.49 | N104: 2
A105: 103 | G105: 毛雨彤 | H105: 56.50 | I105: 28.25 | J105: 3 | K105: 82.10 | L105: 41.05 | M105: 69.30 | N105: 3
A106: 104 | C106: 民族小学 | D106: 小学语文教学1 | E106: 20170201 | F106: 7 | G106: 曾红萍 | H106: 70.50 | I106: 35.25 | J106: 1 | K106: 85.12 | L106: 42.56 | M106: 77.81 | N106: 1 | O106: 是
A107: 105 | G107: 文家锐 | H107: 67.00 | I107: 33.50 | J107: 2 | K107: 78.46 | L107: 39.23 | M107: 72.73 | N107: 2 | O107: 是
A108: 106 | G108: 罗洪娥 | H108: 61.50 | I108: 30.75 | J108: 5 | K108: 80.66 | L108: 40.33 | M108: 71.08 | N108: 3 | O108: 是
A109: 107 | G109: 赵树叶 | H109: 60.50 | I109: 30.25 | J109: 6 | K109: 80.40 | L109: 40.20 | M109: 70.45 | N109: 4 | O109: 是
A110: 108 | G110: 陈余群 | H110: 62.50 | I110: 31.25 | J110: 4 | K110: 75.60 | L110: 37.80 | M110: 69.05 | N110: 5 | O110: 是
A111: 109 | G111: 赵姝姝 | H111: 60.00 | I111: 30.00 | J111: 7 | K111: 77.60 | L111: 38.80 | M111: 68.80 | N111: 6 | O111: 是
A112: 110 | G112: 袁良喜 | H112: 55.00 | I112: 27.50 | J112: 9 | K112: 81.80 | L112: 40.90 | M112: 68.40 | N112: 7 | O112: 是
A113: 111 | G113: 曹正永 | H113: 56.50 | I113: 28.25 | J113: 8 | K113: 77.62 | L113: 38.81 | M113: 67.06 | N113: 8
A114: 112 | G114: 陈英 | H114: 53.00 | I114: 26.50 | J114: 10 | K114: 76.64 | L114: 38.32 | M114: 64.82 | N114: 9
A115: 113 | D115: 小学数学教学2 | E115: 20170204 | F115: 3 | G115: 唐雨婷 | H115: 69.50 | I115: 34.75 | J115: 1 | K115: 83.06 | L115: 41.53 | M115: 76.28 | N115: 1 | O115: 是
A116: 114 | G116: 曾欣 | H116: 65.50 | I116: 32.75 | J116: 2 | K116: 80.90 | L116: 40.45 | M116: 73.20 | N116: 2 | O116: 是
A117: 115 | G117: 王庆川 | H117: 63.50 | I117: 31.75 | J117: 3 | K117: 78.00 | L117: 39.00 | M117: 70.75 | N117: 3 | O117: 是
A118: 116 | C118: 实验小学 | D118: 小学语文教学 | E118: 20180201 | F118: 1 | G118: 王雪莹 | H118: 68.50 | I118: 34.25 | J118: 1 | K118: 81.68 | L118: 40.84 | M118: 75.09 | N118: 1 | O118: 是
A119: 117 | G119: 张翠芳 | H119: 49.00 | I119: 24.50 | J119: 2 | K119: 81.18 | L119: 40.59 | M119: 65.09 | N119: 2
A120: 118 | D120: 小学音乐教学 | E120: 20180203 | F120: 2 | G120: 李欣怡 | H120: 69.00 | I120: 34.50 | J120: 1 | K120: 80.78 | L120: 40.39 | M120: 74.89 | N120: 1 | O120: 是
A121: 119 | G121: 陈妍西 | H121: 62.00 | I121: 31.00 | J121: 2 | K121: 80.32 | L121: 40.16 | M121: 71.16 | N121: 2 | O121: 是
A122: 120 | G122: 邹涵婕 | H122: 50.50 | I122: 25.25 | J122: 4 | K122: 86.40 | L122: 43.20 | M122: 68.45 | N122: 3
A123: 121 | G123: 耍惹小妹 | H123: 59.50 | I123: 29.75 | J123: 3 | K123: 76.45 | L123: 38.23 | M123: 67.98 | N123: 4
A124: 122 | C124: 马边彝族自治县小学 | D124: 小学语文教学1 | E124: 20200201 | F124: 7 | G124: 刘燕 | H124: 74.00 | I124: 37.00 | J124: 1 | K124: 86.04 | L124: 43.02 | M124: 80.02 | N124: 1 | O124: 是
A125: 123 | G125: 陈媛媛 | H125: 70.50 | I125: 35.25 | J125: 2 | K125: 85.24 | L125: 42.62 | M125: 77.87 | N125: 2 | O125: 是
A126: 124 | G126: 吉机小妹 | H126: 67.00 | I126: 33.50 | J126: 4 | K126: 87.08 | L126: 43.54 | M126: 77.04 | N126: 3 | O126: 是
A127: 125 | G127: 曹欢 | H127: 70.50 | I127: 35.25 | J127: 2 | K127: 82.56 | L127: 41.28 | M127: 76.53 | N127: 4 | O127: 是
A128: 126 | G128: 宋莉 | H128: 63.50 | I128: 31.75 | J128: 7 | K128: 83.24 | L128: 41.62 | M128: 73.37 | N128: 5 | O128: 是
A129: 127 | G129: 马含丹 | H129: 67.00 | I129: 33.50 | J129: 4 | K129: 76.32 | L129: 38.16 | M129: 71.66 | N129: 6 | O129: 是
A130: 128 | G130: 赵梅 | H130: 65.50 | I130: 32.75 | J130: 6 | K130: 77.08 | L130: 38.54 | M130: 71.29 | N130: 7 | O130: 是
A131: 129 | G131: 刘明薇 | H131: 61.50 | I131: 30.75 | J131: 9 | K131: 79.10 | L131: 39.55 | M131: 70.30 | N131: 8
A132: 130 | G132: 龚霞 | H132: 56.50 | I132: 28.25 | J132: 14 | K132: 82.38 | L132: 41.19 | M132: 69.44 | N132: 9
A133: 131 | G133: 毛凤英 | H133: 59.50 | I133: =H133*50% -> 29.75 | J133: 10 | K133: 78.08 | L133: 39.04 | M133: 68.79 | N133: 10
A134: 132 | G134: 朱家仙 | H134: 58.00 | I134: 29.00 | J134: 11 | K134: 77.32 | L134: =K134*50% -> 38.66 | M134: =I134+L134 -> 67.66 | N134: 11
A135: 133 | G135: 申春松 | H135: 57.00 | I135: 28.50 | J135: 12 | K135: 76.84 | L135: =K135*50% -> 38.42 | M135: =I135+L135 -> 66.92 | N135: 12
A136: 134 | G136: 王钰辉 | H136: 57.00 | I136: 28.50 | J136: 12 | K136: 74.36 | L136: =K136*50% -> 37.18 | M136: =I136+L136 -> 65.68 | N136: 13
A137: 135 | G137: 张吉生 | H137: 51.00 | I137: 25.50 | J137: 16 | K137: 80.00 | L137: =K137*50% -> 40.00 | M137: =I137+L137 -> 65.50 | N137: 14
A138: 136 | G138: 高余琴 | H138: 63.50 | I138: 31.75 | J138: 7 | K138: 缺考
A139: 137 | D139: 小学语文教学2 | E139: 20200202 | F139: 5 | G139: 杨俊 | H139: 80.00 | I139: 40.00 | J139: 1 | K139: 86.86 | L139: =K139*50% -> 43.43 | M139: =I139+L139 -> 83.43 | N139: 1 | O139: 是
A140: 138 | G140: 李一佳 | H140: 75.00 | I140: 37.50 | J140: 3 | K140: 87.64 | L140: 43.82 | M140: 81.32 | N140: 2 | O140: 是
A141: 139 | G141: 左艾琳 | H141: 75.50 | I141: 37.75 | J141: 2 | K141: 85.10 | L141: 42.55 | M141: 80.30 | N141: 3 | O141: 是
A142: 140 | G142: 梅雪 | H142: 70.00 | I142: 35.00 | J142: 7 | K142: 90.06 | L142: 45.03 | M142: 80.03 | N142: 4 | O142: 是
A143: 141 | G143: 邓丽君 | H143: 70.00 | I143: 35.00 | J143: 7 | K143: 89.86 | L143: 44.93 | M143: 79.93 | N143: 5 | O143: 是
A144: 142 | G144: 王会茹 | H144: 74.50 | I144: 37.25 | J144: 4 | K144: 85.00 | L144: 42.50 | M144: 79.75 | N144: 6
A145: 143 | G145: 余玉梅 | H145: 71.50 | I145: 35.75 | J145: 5 | K145: 86.12 | L145: 43.06 | M145: 78.81 | N145: 7
A146: 144 | G146: 李苏林 | H146: 67.50 | I146: 33.75 | J146: 9 | K146: 89.24 | L146: 44.62 | M146: 78.37 | N146: 8
A147: 145 | G147: 刘颖洁 | H147: 71.00 | I147: 35.50 | J147: 6 | K147: 81.64 | L147: 40.82 | M147: 76.32 | N147: 9
A148: 146 | G148: 李梦瑶 | H148: 62.50 | I148: 31.25 | J148: 12 | K148: 89.68 | L148: 44.84 | M148: 76.09 | N148: 10
A149: 147 | G149: 周玉梅 | H149: 62.50 | I149: 31.25 | J149: 12 | K149: 88.82 | L149: 44.41 | M149: 75.66 | N149: 11
A150: 148 | G150: 余应红 | H150: 65.00 | I150: 32.50 | J150: 11 | K150: 85.40 | L150: 42.70 | M150: 75.20 | N150: 12
A151: 149 | G151: 余梦姝 | H151: 62.00 | I151: 31.00 | J151: 15 | K151: 88.34 | L151: 44.17 | M151: 75.17 | N151: 13
A152: 150 | G152: 赖鑫洋 | H152: 65.50 | I152: 32.75 | J152: 10 | K152: 83.92 | L152: 41.96 | M152: 74.71 | N152: 14
A153: 151 | G153: 苟日欧龙 | H153: 62.50 | I153: 31.25 | J153: 12 | K153: 76.98 | L153: 38.49 | M153: 69.74 | N153: 15
A154: 152 | D154: 小学语文教学3 | E154: 20200203 | F154: 4 | G154: 杨成娟 | H154: 73.00 | I154: 36.50 | J154: 3 | K154: 89.00 | L154: 44.50 | M154: 81.00 | N154: 1 | O154: 是
A155: 153 | G155: 雷洲敏 | H155: 74.00 | I155: 37.00 | J155: 1 | K155: 87.36 | L155: 43.68 | M155: 80.68 | N155: 2 | O155: 是
A156: 154 | G156: 申腾 | H156: 73.50 | I156: 36.75 | J156: 2 | K156: 85.58 | L156: 42.79 | M156: 79.54 | N156: 3 | O156: 是
A157: 155 | G157: 段秋燕 | H157: 70.00 | I157: 35.00 | J157: 7 | K157: 88.64 | L157: 44.32 | M157: 79.32 | N157: 4 | O157: 是
A158: 156 | G158: 杨婷婷 | H158: 71.00 | I158: 35.50 | J158: 5 | K158: 87.60 | L158: 43.80 | M158: 79.30 | N158: 5
A159: 157 | G159: 罗宣芳 | H159: 73.00 | I159: 36.50 | J159: 3 | K159: 85.40 | L159: 42.70 | M159: 79.20 | N159: 6
A160: 158 | G160: 柳力丹 | H160: 70.00 | I160: 35.00 | J160: 7 | K160: 86.28 | L160: 43.14 | M160: 78.14 | N160: 7
A161: 159 | G161: 朱梦琪 | H161: 71.00 | I161: 35.50 | J161: 5 | K161: 85.20 | L161: 42.60 | M161: 78.10 | N161: 8
A162: 160 | G162: 孟媛媛 | H162: 69.50 | I162: 34.75 | J162: 9 | K162: 86.36 | L162: 43.18 | M162: 77.93 | N162: 9
A163: 161 | G163: 蒋雪敏 | H163: 67.50 | I163: 33.75 | J163: 11 | K163: 86.86 | L163: 43.43 | M163: 77.18 | N163: 10
A164: 162 | G164: 陈炳屹 | H164: 65.50 | I164: 32.75 | J164: 13 | K164: 86.04 | L164: 43.02 | M164: 75.77 | N164: 11
A165: 163 | G165: 吴蓉 | H165: 66.50 | I165: 33.25 | J165: 12 | K165: 84.06 | L165: 42.03 | M165: 75.28 | N165: 12
A166: 164 | D166: 小学语文教学4 | E166: 20200204 | F166: 2 | G166: 周定燕 | H166: 62.50 | I166: 31.25 | J166: 3 | K166: 87.06 | L166: 43.53 | M166: 74.78 | N166: 1 | O166: 是
A167: 165 | G167: 罗布罗波 | H167: 68.00 | I167: 34.00 | J167: 1 | K167: 77.02 | L167: 38.51 | M167: 72.51 | N167: 2 | O167: 是
A168: 166 | G168: 阿罗曲子 | H168: 63.00 | I168: 31.50 | J168: 2 | K168: 81.12 | L168: 40.56 | M168: 72.06 | N168: 3
A169: 167 | G169: 曲模娘娘 | H169: 61.00 | I169: 30.50 | J169: 4 | K169: 76.20 | L169: 38.10 | M169: 68.60 | N169: 4
A170: 168 | G170: 谭丽 | H170: 51.00 | I170: 25.50 | J170: 6 | K170: 83.82 | L170: 41.91 | M170: 67.41 | N170: 5
A171: 169 | D171: 小学语文教学5 | E171: 20200205 | F171: 4 | G171: 吕启华 | H171: 84.00 | I171: 42.00 | J171: 1 | K171: 82.40 | L171: 41.20 | M171: 83.20 | N171: 1 | O171: 是
A172: 170 | G172: 谷凤姗 | H172: 75.00 | I172: 37.50 | J172: 4 | K172: 88.00 | L172: 44.00 | M172: 81.50 | N172: 2 | O172: 是
A173: 171 | G173: 余琴 | H173: 76.00 | I173: 38.00 | J173: 3 | K173: 84.00 | L173: 42.00 | M173: 80.00 | N173: 3 | O173: 是
A174: 172 | G174: 阿呷尔金莫 | H174: 75.00 | I174: 37.50 | J174: 4 | K174: 84.62 | L174: 42.31 | M174: 79.81 | N174: 4 | O174: 是
A175: 173 | G175: 罗文美 | H175: 74.50 | I175: 37.25 | J175: 7 | K175: 82.80 | L175: 41.40 | M175: 78.65 | N175: 5
A176: 174 | G176: 禄锐 | H176: 74.50 | I176: 37.25 | J176: 7 | K176: 82.20 | L176: 41.10 | M176: 78.35 | N176: 6
A177: 175 | G177: 马海日各 | H177: 78.50 | I177: 39.25 | J177: 2 | K177: 78.06 | L177: 39.03 | M177: 78.28 | N177: 7
A178: 176 | G178: 钟永芬 | H178: 73.50 | I178: 36.75 | J178: 12 | K178: 82.84 | L178: 41.42 | M178: 78.17 | N178: 8
A179: 177 | G179: 李秀琼 | H179: 73.50 | I179: 36.75 | J179: 12 | K179: 81.44 | L179: 40.72 | M179: 77.47 | N179: 9
A180: 178 | G180: 鲁娜 | H180: 74.50 | I180: 37.25 | J180: 7 | K180: 80.20 | L180: 40.10 | M180: 77.35 | N180: 10
A181: 179 | G181: 蒋慧 | H181: 74.00 | I181: 37.00 | J181: 11 | K181: 79.80 | L181: 39.90 | M181: 76.90 | N181: 11
A182: 180 | G182: 刘雪银 | H182: 74.50 | I182: 37.25 | J182: 7 | K182: 76.56 | L182: 38.28 | M182: 75.53 | N182: 12
A183: 181 | G183: 马佳龙 | H183: 75.00 | I183: 37.50 | J183: 4 | K183: 75.32 | L183: 37.66 | M183: 75.16 | N183: 13
A184: 182 | G184: 阿尔日呷 | H184: 73.50 | I184: 36.75 | J184: 12 | K184: 75.74 | L184: 37.87 | M184: 74.62 | N184: 14
A185: 183 | D185: 小学语文教学6 | E185: 20200206 | F185: 4 | G185: 陈璐 | H185: 77.00 | I185: 38.50 | J185: 1 | K185: 92.16 | L185: 46.08 | M185: 84.58 | N185: 1 | O185: 是
A186: 184 | G186: 邓敏 | H186: 73.00 | I186: 36.50 | J186: 5 | K186: 90.08 | L186: 45.04 | M186: 81.54 | N186: 2 | O186: 是
A187: 185 | G187: 吉克石智 | H187: 73.50 | I187: 36.75 | J187: 3 | K187: 89.34 | L187: 44.67 | M187: 81.42 | N187: 3 | O187: 是
A188: 186 | G188: 李梦瑶 | H188: 73.00 | I188: 36.50 | J188: 5 | K188: 88.16 | L188: 44.08 | M188: 80.58 | N188: 4 | O188: 是
A189: 187 | G189: 雷雷晓梅 | H189: 77.00 | I189: 38.50 | J189: 1 | K189: 83.56 | L189: 41.78 | M189: 80.28 | N189: 5
A190: 188 | G190: 偶其阿布 | H190: 73.50 | I190: 36.75 | J190: 3 | K190: 86.46 | L190: 43.23 | M190: 79.98 | N190: 6
A191: 189 | G191: 李明月 | H191: 73.00 | I191: 36.50 | J191: 5 | K191: 86.78 | L191: 43.39 | M191: 79.89 | N191: 7
A192: 190 | G192: 苟腊梅 | H192: 70.50 | I192: 35.25 | J192: 10 | K192: 88.64 | L192: 44.32 | M192: 79.57 | N192: 8
A193: 191 | G193: 费杨 | H193: 70.50 | I193: 35.25 | J193: 10 | K193: 88.20 | L193: 44.10 | M193: 79.35 | N193: 9
A194: 192 | G194: 甲史牛布 | H194: 72.50 | I194: 36.25 | J194: 8 | K194: 85.06 | L194: 42.53 | M194: 78.78 | N194: 10
A195: 193 | G195: 李永燕 | H195: 71.00 | I195: 35.50 | J195: 9 | K195: 84.78 | L195: 42.39 | M195: 77.89 | N195: 11
A196: 194 | G196: 吉础小里 | H196: 70.50 | I196: 35.25 | J196: 10 | K196: 84.28 | L196: 42.14 | M196: 77.39 | N196: 12
A197: 195 | D197: 小学数学教学1 | E197: 20200207 | F197: 6 | G197: 刘忠琴 | H197: 74.50 | I197: =H197*50% -> 37.25 | J197: 1 | K197: 89.60 | L197: 44.80 | M197: 82.05 | N197: 1 | O197: 是
A198: 196 | G198: 曾思华 | H198: 63.50 | I198: 31.75 | J198: 3 | K198: 93.00 | L198: 46.50 | M198: 78.25 | N198: 2 | O198: 是
A199: 197 | G199: 蒋杰 | H199: 69.50 | I199: 34.75 | J199: 2 | K199: 82.30 | L199: 41.15 | M199: 75.90 | N199: 3 | O199: 是
A200: 198 | G200: 罗敏 | H200: 63.50 | I200: 31.75 | J200: 3 | K200: 84.20 | L200: 42.10 | M200: 73.85 | N200: 4 | O200: 是
... 152 more rows
